fUST/lending_fUST_20250811
["ID","MTS","AMOUNT","RATE_DAILY","PERIOD"]
[378589458,1754919061714,-1460.04,0.00019726,2]
[378589459,1754919061727,-460.0,0.00019726,2]
[378589460,1754919061737,-460.0,0.00019726,2]
[378589461,1754919061747,-485.52889551,0.00019726,2]
[378589462,1754919061756,-460.0,0.00019726,2]
[378589463,1754919061765,-460.0,0.00019726,2]
[378589464,1754919061775,-460.0,0.00019726,2]
[378589465,1754919061785,-460.0,0.00019726,2]
[378589466,1754919061794,-460.0,0.00019726,2]
[378589467,1754919061804,-460.0,0.00019726,2]
[378589468,1754919061813,-460.0,0.00019726,2]
[378589469,1754919061823,-460.0,0.00019726,2]
[378589470,1754919061833,-460.0,0.00019726,2]
[378589471,1754919061842,-460.0,0.00019726,2]
[378589472,1754919061851,-460.0,0.00019726,2]
[378589473,1754919061861,-460.0,0.00019726,2]
[378589474,1754919061870,-460.0,0.00019726,2]
[378589475,1754919061879,-742.19,0.00019726,2]
[378589476,1754919061890,-1006.46,0.00019726,2]
[378589477,1754919061899,-460.0,0.00019726,2]
[378589478,1754919061910,-460.0,0.00019726,2]
[378589479,1754919061919,-983.5,0.00019726,2]
[378589480,1754919061929,-460.0,0.00019726,2]
[378589481,1754919061938,-460.0,0.00019726,2]
[378589482,1754919061948,-460.0,0.00019726,2]
[378589483,1754919061957,-460.0,0.00019726,2]
[378589484,1754919061969,-460.0,0.00019726,2]
[378589485,1754919061979,-460.0,0.00019726,2]
[378589486,1754919061989,-460.0,0.00019726,2]
[378589487,1754919061998,-822.18,0.00019726,2]
[378589488,1754919062008,-476.81930231,0.00019726,2]
[378589489,1754919062018,-460.0,0.00019726,2]
[378589490,1754919062027,-460.0,0.00019726,2]
[378589491,1754919062037,-460.0,0.00019726,2]
[378589492,1754919062046,-460.0,0.00019726,2]
[378589493,1754919062055,-460.0,0.00019726,2]
[378589494,1754919062064,-204.753215,0.00019726,2]
[378589495,1754919062074,-1366.84,0.00019726,2]
[378589496,1754919062144,-469.63287938,0.00019726,2]
[378589497,1754919062154,-1618.07,0.00019726,2]
[378589498,1754919062163,-481.64,0.00019726,2]
[378589499,1754919062173,-460.0,0.00019726,2]
[378589500,1754919062182,-460.0,0.00019726,2]
[378589501,1754919062191,-493.08677408,0.00019726,2]
[378589502,1754919062200,-460.0,0.00019726,2]
[378589503,1754919062209,-460.0,0.00019726,2]
[378589504,1754919062222,-460.0,0.00019726,2]
[378589505,1754919062235,-460.0,0.00019726,2]
[378589506,1754919062245,-460.0,0.00019726,2]
[378589507,1754919062254,-460.0,0.00019726,2]
[378589508,1754919062262,-460.0,0.00019726,2]
[378589509,1754919062272,-460.0,0.00019726,2]
[378589510,1754919062282,-460.0,0.00019726,2]
[378589511,1754919062291,-821.57,0.00019726,2]
[378589512,1754919062300,-460.0,0.00019726,2]
[378589513,1754919062310,-590.29,0.00019726,2]
[378589514,1754919062319,-460.0,0.00019726,2]
[378589515,1754919062328,-1130.52,0.00019726,2]
[378589516,1754919062337,-460.0,0.00019726,2]
[378589517,1754919062346,-460.0,0.00019726,2]
[378589518,1754919062355,-460.0,0.00019726,2]
[378589519,1754919062365,-658.43,0.00019726,2]
[378589520,1754919062374,-460.0,0.00019726,2]
[378589521,1754919062383,-461.86386451,0.00019726,2]
[378589522,1754919062392,-476.13,0.00019726,2]
[378589523,1754919062402,-460.0,0.00019726,2]
[378589524,1754919062411,-460.0,0.00019726,2]
[378589525,1754919062420,-484.16582763,0.00019726,2]
[378589526,1754919062429,-460.0,0.00019726,2]
[378589527,1754919062439,-460.0,0.00019726,2]
[378589528,1754919062448,-460.0,0.00019726,2]
[378589529,1754919062457,-460.0,0.00019726,2]
[378589530,1754919062467,-460.0,0.00019726,2]
[378589531,1754919062477,-460.0,0.00019726,2]
[378589532,1754919062486,-460.0,0.00019726,2]
[378589533,1754919062496,-460.0,0.00019726,2]
[378589534,1754919062505,-881.93,0.00019726,2]
[378589535,1754919062514,-460.0,0.00019726,2]
[378589536,1754919062524,-460.0,0.00019726,2]
[378589537,1754919062533,-474.13724685,0.00019726,2]
[378589538,1754919062542,-460.0,0.00019726,2]
[378589539,1754919062552,-460.0,0.00019726,2]
[378589540,1754919062561,-460.0,0.00019726,2]
[378589541,1754919062571,-460.0,0.00019726,2]
[378589542,1754919062580,-460.0,0.00019726,2]
[378589543,1754919062590,-460.0,0.00019726,2]
[378589544,1754919062599,-506.35,0.00019726,2]
[378589545,1754919062609,-460.0,0.00019726,2]
[378589546,1754919062619,-460.0,0.00019726,2]
[378589547,1754919062629,-646.29,0.00019726,2]
[378589548,1754919062638,-460.0,0.00019726,2]
[378589549,1754919062648,-460.0,0.00019726,2]
[378589550,1754919062658,-460.0,0.00019726,2]
[378589551,1754919062668,-463.95647016,0.00019726,2]
[378589552,1754919062678,-460.0,0.00019726,2]
[378589553,1754919062692,-227.828866,0.00019726,2]
[378589554,1754919062704,-460.0,0.00019726,2]
[378589555,1754919062714,-151.0,0.00019726,2]
[378589556,1754919062729,-460.0,0.00019726,2]
[378589557,1754919062738,-460.0,0.00019726,2]
[378589558,1754919062748,-460.0,0.00019726,2]
[378589559,1754919062756,-460.0,0.00019726,2]
[378589560,1754919062764,-460.0,0.00019726,2]
[378589561,1754919062774,-460.0,0.00019726,2]
[378589562,1754919062782,-460.0,0.00019726,2]
[378589563,1754919062792,-1208.83,0.00019726,2]
[378589564,1754919062801,-460.0,0.00019726,2]
[378589565,1754919062811,-473.04,0.00019726,2]
[378589566,1754919062820,-470.81,0.00019726,2]
[378589567,1754919062829,-832.99,0.00019726,2]
[378589568,1754919062838,-935.53,0.00019726,2]
[378589569,1754919062847,-460.0,0.00019726,2]
[378589570,1754919062856,-460.0,0.00019726,2]
[378589571,1754919062865,-460.0,0.00019726,2]
[378589572,1754919062875,-460.0,0.00019726,2]
[378589573,1754919062884,-460.0,0.00019726,2]
[378589574,1754919062893,-460.0,0.00019726,2]
[378589575,1754919062902,-460.0,0.00019726,2]
[378589576,1754919062911,-460.0,0.00019726,2]
[378589577,1754919062920,-469.40226558,0.00019726,2]
[378589578,1754919062929,-460.0,0.00019726,2]
[378589579,1754919062939,-460.0,0.00019726,2]
[378589580,1754919062948,-806.7,0.00019726,2]
[378589581,1754919062957,-460.0,0.00019726,2]
[378589582,1754919062971,-460.0,0.00019726,2]
[378589583,1754919062981,-460.0,0.00019726,2]
[378589584,1754919062990,-460.0,0.00019726,2]
[378589585,1754919063000,-664.46,0.00019726,2]
[378589586,1754919063009,-460.0,0.00019726,2]
[378589587,1754919063018,-480.61,0.00019726,2]
[378589588,1754919063028,-151.0,0.00019726,2]
[378589589,1754919063038,-1707.53,0.00019726,2]
[378589590,1754919063049,-746.56,0.00019726,2]
[378589591,1754919063059,-460.0,0.00019726,2]
[378589592,1754919063069,-460.0,0.00019726,2]
[378589593,1754919063078,-460.0,0.00019726,2]
[378589594,1754919063088,-1339.12,0.00019726,2]
[378589595,1754919063098,-460.0,0.00019726,2]
[378589596,1754919063107,-460.0,0.00019726,2]
[378589597,1754919063117,-484.98536871,0.00019726,2]
[378589598,1754919063126,-460.0,0.00019726,2]
[378589599,1754919063136,-460.0,0.00019726,2]
[378589600,1754919063145,-460.0,0.00019726,2]
[378589601,1754919063155,-460.0,0.00019726,2]
[378589602,1754919063164,-460.0,0.00019726,2]
[378589603,1754919063173,-460.0,0.00019726,2]
[378589604,1754919063182,-460.0,0.00019726,2]
[378589605,1754919063192,-460.0,0.00019726,2]
[378589606,1754919063202,-914.56,0.00019726,2]
[378589607,1754919063212,-695.81,0.00019726,2]
[378589608,1754919063227,-557.58,0.00019726,2]
[378589609,1754919063239,-460.0,0.00019726,2]
[378589610,1754919063248,-460.0,0.00019726,2]
[378589611,1754919063257,-460.0,0.00019726,2]
[378589612,1754919063267,-460.0,0.00019726,2]
[378589613,1754919063277,-460.0,0.00019726,2]
[378589614,1754919063287,-460.0,0.00019726,2]
[378589615,1754919063296,-387.026442,0.00019726,2]
[378589616,1754919063311,-460.0,0.00019726,2]
[378589617,1754919063320,-460.0,0.00019726,2]
[378589618,1754919063330,-387.026442,0.00019726,2]
[378589619,1754919063339,-460.0,0.00019726,2]
[378589620,1754919063348,-886.34,0.00019726,2]
[378589621,1754919063357,-901.64,0.00019726,2]
[378589622,1754919063367,-460.0,0.00019726,2]
[378589623,1754919063376,-460.0,0.00019726,2]
[378589624,1754919063385,-460.0,0.00019726,2]
[378589625,1754919063395,-827.16,0.00019726,2]
[378589626,1754919063404,-460.0,0.00019726,2]
[378589627,1754919063413,-1809.73,0.00019726,2]
[378589628,1754919063422,-637.56,0.00019726,2]
[378589629,1754919063431,-476.84959041,0.00019726,2]
[378589630,1754919063441,-460.0,0.00019726,2]
[378589631,1754919063450,-460.0,0.00019726,2]
[378589632,1754919063460,-567.08,0.00019726,2]
[378589633,1754919063472,-460.0,0.00019726,2]
[378589634,1754919063481,-496.3,0.00019726,2]
[378589635,1754919063493,-467.5314501,0.00019726,2]
[378589636,1754919063503,-525.82139197,0.00019726,2]
[378589637,1754919063513,-460.0,0.00019726,2]
[378589638,1754919063523,-3826.01,0.00019726,2]
[378589639,1754919063532,-151.0,0.00019726,2]
[378589640,1754919063541,-568.3,0.00019726,2]
[378589641,1754919063551,-691.68,0.00019726,2]
[378589642,1754919063561,-460.0,0.00019726,2]
[378589643,1754919063571,-460.0,0.00019726,2]
[378589644,1754919063580,-545.13570186,0.00019726,2]
[378589645,1754919063590,-460.0,0.00019726,2]
[378589646,1754919063600,-460.0,0.00019726,2]
[378589647,1754919063609,-460.0,0.00019726,2]
[378589648,1754919063619,-471.80996369,0.00019726,2]
[378589649,1754919063629,-460.0,0.00019726,2]
[378589650,1754919063639,-1011.33,0.00019726,2]
[378589651,1754919063649,-460.0,0.00019726,2]
[378589652,1754919063659,-460.0,0.00019726,2]
[378589653,1754919063669,-460.0,0.00019726,2]
[378589654,1754919063678,-483.66,0.00019726,2]
[378589655,1754919063688,-3953.1,0.00019726,2]
[378589656,1754919063697,-460.0,0.00019726,2]
[378589657,1754919063706,-460.0,0.00019726,2]
[378589658,1754919063716,-971.63,0.00019726,2]
[378589659,1754919063730,-407.73537088,0.00019726,2]
[378589660,1754919063739,-460.0,0.00019726,2]
[378589661,1754919063750,-151.0,0.00019726,2]
[378589662,1754919063760,-460.0,0.00019726,2]
[378589663,1754919063771,-460.0,0.00019726,2]
[378589664,1754919063780,-605.86,0.00019726,2]
[378589665,1754919063790,-460.0,0.00019726,2]
[378589666,1754919063800,-460.0,0.00019726,2]
[378589667,1754919063811,-535.64,0.00019726,2]
[378589668,1754919063821,-460.0,0.00019726,2]
[378589669,1754919063832,-2135.14,0.00019726,2]
[378589670,1754919063843,-460.0,0.00019726,2]
[378589671,1754919063854,-460.0,0.00019726,2]
[378589672,1754919063864,-461.07573452,0.00019726,2]
[378589673,1754919063874,-460.0,0.00019726,2]
[378589674,1754919063884,-472.21973355,0.00019726,2]
[378589675,1754919063894,-460.0,0.00019726,2]
[378589676,1754919063904,-460.0,0.00019726,2]
[378589677,1754919063915,-460.0,0.00019726,2]
[378589678,1754919063925,-460.0,0.00019726,2]
[378589679,1754919063935,-549.53,0.00019726,2]
[378589680,1754919063944,-460.0,0.00019726,2]
[378589681,1754919063954,-460.0,0.00019726,2]
[378589682,1754919063964,-1225.25,0.00019726,2]
[378589683,1754919063979,-460.0,0.00019726,2]
[378589684,1754919063989,-460.0,0.00019726,2]
[378589685,1754919063999,-1050.87,0.00019726,2]
[378589686,1754919064009,-151.0,0.00019726,2]
[378589687,1754919064019,-460.0,0.00019726,2]
[378589688,1754919064028,-460.0,0.00019726,2]
[378589689,1754919064040,-856.79,0.00019726,2]
[378589690,1754919064050,-1001.73,0.00019726,2]
[378589691,1754919064060,-460.0,0.00019726,2]
[378589692,1754919064069,-460.0,0.00019726,2]
[378589693,1754919064079,-460.0,0.00019726,2]
[378589694,1754919064090,-151.0,0.00019726,2]
[378589695,1754919064100,-460.0,0.00019726,2]
[378589696,1754919064110,-460.0,0.00019726,2]
[378589697,1754919064121,-460.0,0.00019726,2]
[378589698,1754919064131,-460.0,0.00019726,2]
[378589699,1754919064141,-1018.15,0.00019726,2]
[378589700,1754919064151,-460.0,0.00019726,2]
[378589701,1754919064161,-281.13136386,0.00019726,2]
[378589702,1754919064171,-1637.25,0.00019726,2]
[378589703,1754919064181,-673.4,0.00019726,2]
[378589704,1754919064191,-460.0,0.00019726,2]
[378589705,1754919064201,-460.0,0.00019726,2]
[378589706,1754919064210,-460.0,0.00019726,2]
[378589707,1754919064222,-460.0,0.00019726,2]
[378589708,1754919064236,-460.0,0.00019726,2]
[378589709,1754919064246,-460.0,0.00019726,2]
[378589710,1754919064256,-460.0,0.00019726,2]
[378589711,1754919064266,-2795.15,0.00019726,2]
[378589712,1754919064276,-1979.8,0.00019726,2]
[378589713,1754919064285,-460.0,0.00019726,2]
[378589714,1754919064295,-667.66,0.00019726,2]
[378589715,1754919064308,-460.0,0.00019726,2]
[378589716,1754919064318,-460.0,0.00019726,2]
[378589717,1754919064328,-460.0,0.00019726,2]
[378589718,1754919064338,-460.0,0.00019726,2]
[378589719,1754919064349,-480.66,0.00019726,2]
[378589720,1754919064358,-460.0,0.00019726,2]
[378589721,1754919064368,-836.56,0.00019726,2]
[378589722,1754919064378,-987.3,0.00019726,2]
[378589723,1754919064388,-1384.5,0.00019726,2]
[378589724,1754919064398,-460.0,0.00019726,2]
[378589725,1754919064408,-460.0,0.00019726,2]
[378589726,1754919064417,-826.6,0.00019726,2]
[378589727,1754919064427,-460.0,0.00019726,2]
[378589728,1754919064436,-460.0,0.00019726,2]
[378589729,1754919064446,-498.41,0.00019726,2]
[378589730,1754919064456,-967.31,0.00019726,2]
[378589731,1754919064465,-460.0,0.00019726,2]
[378589732,1754919064478,-460.0,0.00019726,2]
[378589733,1754919064487,-496.37,0.00019726,2]
[378589734,1754919064497,-460.0,0.00019726,2]
[378589735,1754919064507,-460.0,0.00019726,2]
[378589736,1754919064518,-460.0,0.00019726,2]
[378589737,1754919064528,-460.0,0.00019726,2]
[378589738,1754919064537,-460.0,0.00019726,2]
[378589739,1754919064547,-187.843204,0.00019726,2]
[378589740,1754919064557,-460.0,0.00019726,2]
[378589741,1754919064567,-468.36191498,0.00019726,2]
[378589742,1754919064577,-460.0,0.00019726,2]
[378589743,1754919064587,-187.843204,0.00019726,2]
[378589744,1754919064598,-460.0,0.00019726,2]
[378589745,1754919064608,-1552.45,0.00019726,2]
[378589746,1754919064619,-460.0,0.00019726,2]
[378589747,1754919064629,-460.0,0.00019726,2]
[378589748,1754919064639,-460.0,0.00019726,2]
[378589749,1754919064649,-460.0,0.00019726,2]
[378589750,1754919064659,-2280.34,0.00019726,2]
[378589751,1754919064669,-5522.57,0.00019726,2]
[378589752,1754919064679,-460.0,0.00019726,2]
[378589753,1754919064689,-497.59,0.00019726,2]
[378589754,1754919064700,-460.0,0.00019726,2]
[378589755,1754919064710,-460.0,0.00019726,2]
[378589756,1754919064724,-460.0,0.00019726,2]
[378589757,1754919064734,-495.38,0.00019726,2]
[378589758,1754919064744,-460.0,0.00019726,2]
[378589759,1754919064755,-1272.79,0.00019726,2]
[378589760,1754919064765,-460.0,0.00019726,2]
[378589761,1754919064774,-3242.83,0.00019726,2]
[378589762,1754919064784,-739.66,0.00019726,2]
[378589763,1754919064794,-460.0,0.00019726,2]
[378589764,1754919064805,-151.0,0.00019726,2]
[378589765,1754919064816,-214.1422116,0.00019726,2]
[378589766,1754919064827,-1767.27,0.00019726,2]
[378589767,1754919064837,-460.0,0.00019726,2]
[378589768,1754919064847,-460.0,0.00019726,2]
[378589769,1754919064857,-4693.73,0.00019726,2]
[378589770,1754919064867,-151.0,0.00019726,2]
[378589771,1754919064877,-972.77,0.00019726,2]
[378589772,1754919064894,-1414.33,0.00019726,2]
[378589773,1754919064905,-460.0,0.00019726,2]
[378589774,1754919064916,-2946.27,0.00019726,2]
[378589775,1754919064927,-460.0,0.00019726,2]
[378589776,1754919064937,-460.0,0.00019726,2]
[378589777,1754919064948,-816.78,0.00019726,2]
[378589778,1754919064959,-5792.19,0.00019726,2]
[378589779,1754919064973,-460.0,0.00019726,2]
[378589780,1754919064984,-460.0,0.00019726,2]
[378589781,1754919064994,-1221.01,0.00019726,2]
[378589782,1754919065004,-809.88,0.00019726,2]
[378589783,1754919065015,-1240.59,0.00019726,2]
[378589784,1754919065025,-460.0,0.00019726,2]
[378589785,1754919065035,-460.0,0.00019726,2]
[378589786,1754919065045,-2058.68,0.00019726,2]
[378589787,1754919065055,-460.0,0.00019726,2]
[378589788,1754919065066,-479.63,0.00019726,2]
[378589789,1754919065077,-460.0,0.00019726,2]
[378589790,1754919065087,-1568.27,0.00019726,2]
[378589791,1754919065097,-464.91228357,0.00019726,2]
[378589792,1754919065108,-460.0,0.00019726,2]
[378589793,1754919065118,-460.0,0.00019726,2]
[378589794,1754919065129,-460.0,0.00019726,2]
[378589795,1754919065139,-460.0,0.00019726,2]
[378589796,1754919065149,-460.0,0.00019726,2]
[378589797,1754919065159,-686.82,0.00019726,2]
[378589798,1754919065169,-460.0,0.00019726,2]
[378589799,1754919065179,-462.07793739,0.00019726,2]
[378589800,1754919065189,-577.48,0.00019726,2]
[378589801,1754919065199,-627.52,0.00019726,2]
[378589802,1754919065208,-460.0,0.00019726,2]
[378589803,1754919065222,-460.0,0.00019726,2]
[378589804,1754919065234,-460.0,0.00019726,2]
[378589805,1754919065244,-2507.91,0.00019726,2]
[378589806,1754919065252,-460.0,0.00019726,2]
[378589807,1754919065260,-460.0,0.00019726,2]
[378589808,1754919065270,-460.0,0.00019726,2]
[378589809,1754919065280,-460.0,0.00019726,2]
[378589810,1754919065290,-793.18,0.00019726,2]
[378589811,1754919065301,-460.0,0.00019726,2]
[378589812,1754919065313,-460.0,0.00019726,2]
[378589813,1754919065324,-715.76,0.00019726,2]
[378589814,1754919065336,-460.0,0.00019726,2]
[378589815,1754919065346,-460.0,0.00019726,2]
[378589816,1754919065357,-460.0,0.00019726,2]
[378589817,1754919065367,-460.0,0.00019726,2]
[378589818,1754919065379,-460.0,0.00019726,2]
[378589819,1754919065390,-460.0,0.00019726,2]
[378589820,1754919065402,-460.0,0.00019726,2]
[378589821,1754919065414,-213.499224,0.00019726,2]
[378589822,1754919065425,-766.13,0.00019726,2]
[378589823,1754919065439,-460.0,0.00019726,2]
[378589824,1754919065451,-460.0,0.00019726,2]
[378589825,1754919065463,-460.0,0.00019726,2]
[378589826,1754919065480,-460.0,0.00019726,2]
[378589827,1754919065492,-213.499224,0.00019726,2]
[378589828,1754919065503,-460.0,0.00019726,2]
[378589829,1754919065514,-460.0,0.00019726,2]
[378589830,1754919065525,-4043.18,0.00019726,2]
[378589831,1754919065536,-3754.87,0.00019726,2]
[378589832,1754919065548,-460.0,0.00019726,2]
[378589833,1754919065558,-604.08,0.00019726,2]
[378589834,1754919065569,-460.0,0.00019726,2]
[378589835,1754919065579,-898.21,0.00019726,2]
[378589836,1754919065590,-460.0,0.00019726,2]
[378589837,1754919065600,-460.0,0.00019726,2]
[378589838,1754919065612,-785.37,0.00019726,2]
[378589839,1754919065622,-346.50092466,0.00019726,2]
[378589840,1754919065634,-1000.0,0.00019726,2]
[378589841,1754919065645,-490.82,0.00019726,2]
[378589842,1754919065655,-5298.29,0.00019726,2]
[378589843,1754919065665,-460.0,0.00019726,2]
[378589844,1754919065675,-460.0,0.00019726,2]
[378589845,1754919065686,-4101.84,0.00019726,2]
[378589846,1754919065697,-460.0,0.00019726,2]
[378589847,1754919065707,-2408.21,0.00019726,2]
[378589848,1754919065718,-466.18777352,0.00019726,2]
[378589849,1754919065734,-460.0,0.00019726,2]
[378589850,1754919065745,-460.0,0.00019726,2]
[378589851,1754919065756,-460.0,0.00019726,2]
[378589852,1754919065766,-547.02,0.00019726,2]
[378589853,1754919065776,-758.74,0.00019726,2]
[378589854,1754919065787,-460.0,0.00019726,2]
[378589855,1754919065797,-460.0,0.00019726,2]
[378589856,1754919065808,-853.74,0.00019726,2]
[378589857,1754919065819,-460.0,0.00019726,2]
[378589858,1754919065829,-460.0,0.00019726,2]
[378589859,1754919065840,-732.83,0.00019726,2]
[378589860,1754919065851,-460.0,0.00019726,2]
[378589861,1754919065862,-1228.24,0.00019726,2]
[378589862,1754919065873,-1360.97,0.00019726,2]
[378589863,1754919065883,-1044.02,0.00019726,2]
[378589864,1754919065894,-460.0,0.00019726,2]
[378589865,1754919065904,-1031.12,0.00019726,2]
[378589866,1754919065914,-489.61,0.00019726,2]
[378589867,1754919065925,-13325.46,0.00019726,2]
[378589868,1754919065936,-230.46860468,0.00019726,2]
[378589869,1754919065947,-2239.55,0.00019726,2]
[378589870,1754919065958,-460.0,0.00019726,2]
[378589871,1754919065968,-460.0,0.00019726,2]
[378589872,1754919065982,-460.0,0.00019726,2]
[378589873,1754919065993,-471.55,0.00019726,2]
[378589874,1754919066003,-518.09,0.00019726,2]
[378589875,1754919066015,-913.9,0.00019726,2]
[378589876,1754919066025,-489.84,0.00019726,2]
[378589877,1754919066035,-460.0,0.00019726,2]
[378589878,1754919066045,-460.0,0.00019726,2]
[378589879,1754919066055,-936.99,0.00019726,2]
[378589880,1754919066065,-460.0,0.00019726,2]
[378589881,1754919066075,-460.0,0.00019726,2]
[378589882,1754919066085,-460.0,0.00019726,2]
[378589883,1754919066095,-460.0,0.00019726,2]
[378589884,1754919066106,-460.0,0.00019726,2]
[378589885,1754919066116,-460.0,0.00019726,2]
[378589886,1754919066126,-1238.03,0.00019726,2]
[378589887,1754919066136,-460.0,0.00019726,2]
[378589888,1754919066145,-460.0,0.00019726,2]
[378589889,1754919066155,-879.87,0.00019726,2]
[378589890,1754919066165,-460.0,0.00019726,2]
[378589891,1754919066175,-151.0,0.00019726,2]
[378589892,1754919066185,-460.0,0.00019726,2]
[378589893,1754919066195,-460.0,0.00019726,2]
[378589894,1754919066205,-1085.7,0.00019726,2]
[378589895,1754919066215,-460.0,0.00019726,2]
[378589896,1754919066231,-826.36,0.00019726,2]
[378589897,1754919066244,-570.56,0.00019726,2]
[378589898,1754919066254,-1286.85,0.00019726,2]
[378589899,1754919066264,-1578.16,0.00019726,2]
[378589900,1754919066275,-480.88755764,0.00019726,2]
[378589901,1754919066285,-594.72990348,0.00019726,2]
[378589902,1754919066296,-460.0,0.00019726,2]
[378589903,1754919066307,-460.0,0.00019726,2]
[378589904,1754919066320,-460.0,0.00019726,2]
[378589905,1754919066334,-460.0,0.00019726,2]
[378589906,1754919066345,-460.0,0.00019726,2]
[378589907,1754919066356,-460.0,0.00019726,2]
[378589908,1754919066367,-1373.46,0.00019726,2]
[378589909,1754919066378,-975.1,0.00019726,2]
[378589910,1754919066389,-460.0,0.00019726,2]
[378589911,1754919066402,-460.0,0.00019726,2]
[378589912,1754919066413,-201.65488289,0.00019726,2]
[378589913,1754919066425,-460.0,0.00019726,2]
[378589914,1754919066436,-460.0,0.00019726,2]
[378589915,1754919066448,-678.54,0.00019726,2]
[378589916,1754919066631,-460.0,0.00019726,2]
[378589917,1754919066642,-460.0,0.00019726,2]
[378589918,1754919066652,-460.0,0.00019726,2]
[378589919,1754919066661,-460.0,0.00019726,2]
[378589920,1754919066671,-460.0,0.00019726,2]
[378589921,1754919066680,-1008.38,0.00019726,2]
[378589922,1754919066690,-460.0,0.00019726,2]
[378589923,1754919066700,-460.0,0.00019726,2]
[378589924,1754919066709,-151.0,0.00019789,2]
[378589925,1754919066719,-151.0,0.00019789,2]
[378589926,1754919066733,-151.0,0.00019789,2]
[378589927,1754919066743,-151.0,0.00019789,2]
[378589928,1754919066752,-500.0,0.00019789,2]
[378589929,1754919066762,-151.0,0.00019789,2]
[378589930,1754919066777,-500.0,0.00019789,2]
[378589931,1754919066787,-500.0,0.00019789,2]
[378589932,1754919066796,-151.0,0.00019789,2]
[378589933,1754919066806,-152.664452,0.00019789,2]
[378589934,1754919066816,-151.0,0.00019789,2]
[378589935,1754919066826,-151.0,0.00019789,2]
[378589936,1754919066835,-151.0,0.00019789,2]
[378589937,1754919066845,-151.0,0.00019789,2]
[378589938,1754919066855,-151.0,0.00019789,2]
[378589939,1754919066866,-207.83573585,0.00019789,2]
[378589940,1754919066876,-155.57098955,0.00019789,2]
[378589941,1754919066886,-500.0,0.00019789,2]
[378589942,1754919066895,-151.0,0.00019789,2]
[378589943,1754919066905,-151.0,0.00019789,2]
[378589944,1754919066914,-151.0,0.00019789,2]
[378589945,1754919066924,-500.0,0.00019789,2]
[378589946,1754919066934,-151.0,0.00019789,2]
[378589947,1754919066944,-151.87830643,0.00019789,2]
[378589948,1754919066954,-151.0,0.00019789,2]
[378589949,1754919066964,-151.0,0.00019789,2]
[378589950,1754919066978,-152.51400407,0.00019789,2]
[378589951,1754919066988,-151.0,0.00019789,2]
[378589952,1754919066998,-228.62727682,0.00019789,2]
[378589953,1754919067008,-151.0,0.00019789,2]
[378589954,1754919067017,-151.0,0.00019789,2]
[378589955,1754919067027,-151.0,0.00019789,2]
[378589956,1754919067037,-269.4039774,0.00019789,2]
[378589957,1754919067046,-151.0,0.00019789,2]